Cogmind - Beta 15 @@@ ROGUE MODE // 2025.08.17 @ 17:59:55 Player: puppuppit Result: Self-destructed Performance ------------- Evolutions (2) 1000 Regions Visited (8) 1600 Robots Destroyed (170) 850 Value Destroyed (3971) 3971 Prototype IDs (9) 180 Alien Tech Used (0) 0 Bonus (1379) 1379 TOTAL SCORE: 8980 Bonus ------- High Alert Combat Kills 491 Follower Combat Kills 108 Registered with UFD 300 Met Optimus in HQ 500 Friendly Fire -20 Cogmind --------- Core Integrity 430/550 Matter 220/300 Energy 150/150 System Corruption 0% Temperature Cool (99) Movement Hovering (112) Ox1 Location -8/Scraptown Parts ------- > --- POWER (1) -------- Light Angular Momentum Engine > --- PROPULSION (3) --- Airjet Airjet Airjet > --- UTILITY (3) ------ Large Storage Unit Hacking Suite System Shield > --- WEAPON (4) ------- Gauss Rifle Gauss Rifle Gauss Rifle Coil Gun > --- INVENTORY (15) --- Improved Hover Unit Airjet Antigrav System High-capacity Matter Pod (200) High-capacity Matter Pod (200) Recoil Stabilizer Improved Propulsion Shielding System Shield A0-MCA's Component Scanner High-powered Tractor Beam Enhanced Autogun Enhanced Autogun Hypervelocity Coil Gun Hypervelocity Coil Gun DRS Beacon (Ready) Peak State ------------ > --- POWER ------------ Light Angular Momentum Engine > --- PROPULSION ------- Airjet Airjet Airjet > --- UTILITY ---------- Large Storage Unit Hacking Suite System Shield > --- WEAPON ----------- Gauss Rifle Gauss Rifle Gauss Rifle Coil Gun > --- INVENTORY -------- Airjet Airjet Antigrav System High-capacity Matter Pod High-capacity Matter Pod Recoil Stabilizer Improved Propulsion Shielding System Shield A0-MCA's Component Scanner High-powered Tractor Beam Enhanced Autogun Enhanced Autogun Hypervelocity Coil Gun Hypervelocity Coil Gun DRS Beacon [Rating: 44] Favorites ----------- Power Light Angular Momentum Engine Engine Light Angular Momentum Engine Power Core Light Nuclear Core Propulsion Armored Treads Treads Armored Treads Hover Unit Airjet Utility Large Storage Unit Device Improved Terrain Scanner Storage Large Storage Unit Processor Advanced Targeting Computer Hackware Hacking Suite Weapon Gauss Rifle Energy Gun EM Pulse Gun Ballistic Gun Gauss Rifle Launcher Grenade Launcher Build | -11 -10 -10 -10 -9 -8 -8 -8 -8 ------- Run | Yrd Mat Min Exi Min Mat Sto Rec Scr Slots Evolved 4 | . . . . . 4 . . . Power . | . . . . . . . . . Propulsion 1 | . . . . . 1 . . . Utility 1 | . . . . . 1 . . . Weapon 2 | . . . . . 2 . . . Parts Attached 64 | 7 3 . . . 35 14 . 5 Power 6 | 1 1 . . . 3 1 . . Engine 5 | 1 . . . . 3 1 . . Core 1 | . 1 . . . . . . . Reactor . | . . . . . . . . . Propulsion 22 | 2 . . . . 9 7 . 4 Treads 18 | 2 . . . . 9 7 . . Leg . | . . . . . . . . . Wheel . | . . . . . . . . . Hover 4 | . . . . . . . . 4 Flight . | . . . . . . . . . Utility 12 | 2 1 . . . 7 2 . . Device 4 | 1 . . . . 3 . . . Storage 3 | 1 1 . . . 1 . . . Processor 1 | . . . . . 1 . . . Hackware 4 | . . . . . 2 2 . . Protection . | . . . . . . . . . Artifact . | . . . . . . . . . Weapon 24 | 2 1 . . . 16 4 . 1 Energy Gun 2 | 1 1 . . . . . . . Energy Cannon . | . . . . . . . . . Ballistic Gun 20 | 1 . . . . 14 4 . 1 Ballistic Cannon . | . . . . . . . . . Launcher 2 | . . . . . 2 . . . Special Weapon . | . . . . . . . . . Impact Weapon . | . . . . . . . . . Slashing Weapon . | . . . . . . . . . Piercing Weapon . | . . . . . . . . . Special Melee Weapon . | . . . . . . . . . Unidentified Prototypes 4 | . . . . . 4 . . . Parts Lost 4 | . . . . . 2 1 . 1 Power 1 | . . . . . 1 . . . Propulsion 1 | . . . . . . . . 1 Utility . | . . . . . . . . . Weapon 2 | . . . . . 1 1 . . Highest Loss Streak 1 | . . . . . 1 1 . 1 To Critical Strikes . | . . . . . . . . . Average Backups 12 | . 3 5 7 8 14 14 15 14 Power . | . . 1 3 4 1 . . . Propulsion 2 | . . . . . 2 3 5 3 Utility 5 | . 2 3 3 3 5 7 6 7 Weapon 3 | . . 1 1 1 5 4 3 3 Tool/Special . | . . . . . . . . . Unused Backups 36 | . 2 . . . 15 2 . 17 Power 4 | . . . . . 4 . . . Propulsion 5 | . . . . . 3 . . 2 Utility 16 | . 2 . . . 2 1 . 11 Weapon 11 | . . . . . 6 1 . 4 Tool/Special . | . . . . . . . . . Average Slot Usage (%) 98 | . 99 100 100 100 97 99 100 99 Engine 6 | . 1 . . . 7 8 9 9 Core 3 | . 12 14 14 14 1 . . . Treads 24 | . 27 28 28 28 26 27 27 11 Hover 2 | . . . . . . . . 15 Device 4 | . 14 14 14 14 6 . . . Storage 10 | . 14 14 14 14 9 9 9 9 Processor 3 | . . . . . 8 4 . . Hackware 8 | . . . . . 2 12 18 18 Energy Gun 3 | . 13 14 14 14 . . . . Ballistic Gun 30 | . 13 14 14 14 34 35 36 36 Peak Build Rating 44 | 9 11 11 13 13 43 41 40 44 Average Rating 32 | 6 10 11 12 13 34 39 40 41 On Entrance 19 | . 9 11 11 13 13 39 40 40 Naked Turns . | . . . . . . . . . Heaviest Build 48 | 12 30 30 30 30 48 45 41 46 Greatest Support 60 | 40 40 40 40 40 60 60 60 60 Greatest Overweight (x) 1 | . 1 . . . . . . 1 Average Overweight (x) . | . . . . . . . . . Largest Inventory Capacity 15 | 8 15 15 15 15 15 15 15 15 Average Capacity 14 | 7 13 15 15 15 15 15 15 15 Most Carried 15 | 1 6 5 8 8 15 15 15 15 Average Carried 12 | . 3 5 7 8 14 14 14 14 Final Capacity 15 | 8 15 15 15 15 15 15 15 15 Final Carried 15 | 1 5 5 8 8 15 15 15 15 Class Distribution -------------------- 37% | Hacker-Gunner 31% | Gunner 22% | Mutant 6% | Scavenger-Gunner Dominant Class ---------------- Mutant | -10/Materials Mutant | -10/Mines Mutant | -10/Exiles Mutant | -9/Mines Gunner | -8/Materials Gunner | -8/Storage Hacker-Gunner | -8/Recycling Hacker-Gunner | -8/Scraptown Resources | -11 -10 -10 -10 -9 -8 -8 -8 -8 ----------- Run | Yrd Mat Min Exi Min Mat Sto Rec Scr Matter Collected 4690 | 340 716 . . 21 1871 1299 112 331 Remotely . | . . . . . . . . . Salvage Created 6765 | 224 649 . . 97 2963 2093 346 393 Parts 402 | 17 39 . . 4 167 135 23 17 Haulers Intercepted 12 | . 1 . . . 5 6 . . Recyclers Shooed 11 | 1 1 . . . 4 5 . . Parts Field Recycled . | . . . . . . . . . Retrieved Matter . | . . . . . . . . . Parts Self-Destructed 4 | . . . . . . . . 4 Prevented . | . . . . . . . . . Kills | -11 -10 -10 -10 -9 -8 -8 -8 -8 ------- Run | Yrd Mat Min Exi Min Mat Sto Rec Scr Combat Hostiles Destroyed 84 | . 10 . . 2 43 19 3 7 Guns 81 | . 9 . . 2 41 19 3 7 AOE 3 | . 1 . . . 2 . . . Classes Destroyed 17 | 3 4 . . . 6 . . 4 Worker 25 | 2 4 . . . 8 11 . . Builder 11 | . . . . . 4 6 1 . Tunneler 7 | 4 . . . . 3 . . . Hauler 12 | . 1 . . . 5 6 . . Recycler 17 | 1 1 . . . 7 6 2 . Mechanic 1 | . . . . . 1 . . . Operator 3 | . . . . . 2 1 . . Watcher 10 | . 3 . . . 5 2 . . Swarmer 12 | . 3 . . . 7 2 . . Grunt 40 | . 7 . . 2 25 6 . . Duelist 1 | . . . . . 1 . . . Protector 1 | . . . . . 1 . . . Sentry 23 | . . . . . 9 11 3 . Federalist 1 | . . . . . . . . 1 Explorer 3 | . . . . . . . . 3 Guru 1 | . . . . . . . . 1 Scrapper 2 | . . . . . . . . 2 Best Kill Streak 6 | 4 3 . . 2 5 6 1 3 Combat Bots Only 5 | . 3 . . 2 5 3 1 3 Max Kills in Single Turn 3 | 2 2 . . 1 3 2 1 1 Gunslinging 1 | . . . . . 1 . . . Exploded 2 | . 1 . . . 2 . . . Melee . | . . . . . . . . . Uniques/NPCs Destroyed . | . . . . . . . . . Combat | -11 -10 -10 -10 -9 -8 -8 -8 -8 -------- Run | Yrd Mat Min Exi Min Mat Sto Rec Scr Hostile Shots Fired 248 | . 46 . . 8 117 59 . 18 Missed 89 | . 18 . . 3 40 23 . 5 Hits 159 | . 28 . . 5 77 36 . 13 Melee 3 | . . . . . 1 . . 2 Projectile 156 | . 28 . . 5 76 36 . 11 Critical Strikes 4 | . . . . . 3 . . 1 Damage Taken 2422 | . 421 . . 79 1128 535 . 259 Core 218 | . 98 . . . 25 73 . 22 Absorbed by Shields . | . . . . . . . . . Regen/Repaired (Parts) 427 | . 74 . . . 68 285 . . Core Remaining (%) 80 | 100 . . . 60 . . . . Volleys Fired 291 | 13 59 . . 7 111 73 7 21 Largest 4 | 2 2 . . 2 4 4 4 4 Hottest 114 | 60 60 . . 60 114 112 100 114 Shots Fired 977 | 26 118 . . 14 431 276 28 84 Gun 970 | 26 118 . . 14 428 272 28 84 Cannon . | . . . . . . . . . Launcher 7 | . . . . . 3 4 . . Special . | . . . . . . . . . Kinetic 881 | 13 59 . . 7 418 272 28 84 Thermal 34 | 13 18 . . . 3 . . . Explosive 3 | . . . . . 3 . . . Electromagnetic 59 | . 41 . . 7 7 4 . . Robot Hit Streak 24 | 5 6 . . 6 24 20 9 5 Robot Miss Streak 5 | 2 5 . . 2 5 5 1 4 Penetration Max 1 | . . . . . 1 1 . 1 Secondary Targets 15 | . 3 . . . 10 1 . 1 Max Gunslinging Chain 1 | . 1 . . . 1 1 . 1 Shots Hit Robots 573 | 16 59 . . 10 270 155 15 48 Core Hits 281 | 8 28 . . 4 147 68 9 17 Critical Kills 2 | . . . . . 2 . . . Critical Parts Destroyed 6 | . . . . . 3 2 . 1 Critical Strikes 9 | . . . . . 5 3 . 1 Destroy 9 | . . . . . 5 3 . 1 Melee Attacks . | . . . . . . . . . Impact . | . . . . . . . . . Slashing . | . . . . . . . . . Piercing . | . . . . . . . . . Sneak Attacks . | . . . . . . . . . Combat Hostiles . | . . . . . . . . . Follow-up Attacks . | . . . . . . . . . Damage Inflicted 10967 | 231 885 . . 134 5215 3201 253 1048 Guns 10547 | 231 782 . . 134 4898 3201 253 1048 Cannons . | . . . . . . . . . Explosions 420 | . 103 . . . 317 . . . Melee . | . . . . . . . . . Ramming . | . . . . . . . . . Kinetic 9899 | 129 384 . . 66 4818 3201 253 1048 Thermal 312 | 102 189 . . . 21 . . . Explosive 317 | . . . . . 317 . . . Electromagnetic 439 | . 312 . . 68 59 . . . Impact . | . . . . . . . . . Slashing . | . . . . . . . . . Piercing . | . . . . . . . . . Highest Corruption . | . . . . . . . . . Average Corruption . | . . . . . . . . . Corruption Purged . | . . . . . . . . . Corruption Blocked . | . . . . . . . . . Overload Shots . | . . . . . . . . . Overflow Damage 6 | . 6 . . . . . . . Projectiles . | . . . . . . . . . Explosions 6 | . 6 . . . . . . . Melee . | . . . . . . . . . Knockbacks . | . . . . . . . . . Impact . | . . . . . . . . . Kinetic . | . . . . . . . . . Secondary . | . . . . . . . . . Self-Inflicted Damage 8 | . 8 . . . . . . . Shots 1 | . 1 . . . . . . . Rammed 1 | . 1 . . . . . . . Targets Rammed 1 | . 1 . . . . . . . Kicked . | . . . . . . . . . Crushed . | . . . . . . . . . Highest Temperature 309 | . 96 . . 87 309 174 104 256 Average Temperature 59 | . 27 . . 42 70 53 36 100 Received Heat Transfer 1147 | . 192 . . 45 594 198 . 118 Siege Activations . | . . . . . . . . . Martial Activations . | . . . . . . . . . Shielding Activations . | . . . . . . . . . Robots Disrupted . | . . . . . . . . . Combat Hostiles . | . . . . . . . . . Robots Corrupted . | . . . . . . . . . Combat Hostiles . | . . . . . . . . . Parts Fried 1 | . 1 . . . . . . . Impact Corruptions . | . . . . . . . . . Robots Melted . | . . . . . . . . . Combat Hostiles . | . . . . . . . . . Parts Melted 2 | . . . . . . . . 2 Heat Transferred 625 | 225 350 . . . 50 . . . Parts Sabotaged . | . . . . . . . . . Parts Stolen . | . . . . . . . . . Parts Stripped . | . . . . . . . . . Power Chain Reactions 2 | . 2 . . . . . . . Alert | -11 -10 -10 -10 -9 -8 -8 -8 -8 ------- Run | Yrd Mat Min Exi Min Mat Sto Rec Scr Maximum Alert Level 3 | . . . . . 3 2 . . Low Security (%) 64 | 100 100 100 . 100 61 12 100 . Level 1 13 | . . . . . 9 39 . . Level 2 15 | . . . . . 10 48 . . Level 3 7 | . . . . . 18 . . . Level 4 . | . . . . . . . . . Level 5 . | . . . . . . . . . High Security . | . . . . . . . . . Max Security . | . . . . . . . . . Peak Influence 911 | 15 113 27 . 40 911 593 182 . Initial 383 | . . 27 . . . 383 130 . Average 220 | 3 35 18 . 12 274 395 95 . Influence Increases 3321 | 35 455 . . 50 1443 1044 294 . Destroy 0b10 Robot/C 1600 | . 200 . . 40 840 440 80 . Destroy 0b10 Robot/NC 435 | 35 45 . . . 180 160 15 . Destroy Leader 444 | . 48 . . 10 220 166 . . Allied During Kill 54 | . . . . . . 35 19 . Trap Triggered on 0b10 40 | . . . . . . 40 . . Successful Hack 156 | . 32 . . . 49 63 12 . Select Force Hacks 330 | . 60 . . . 60 60 150 . Disable Machine 135 | . 30 . . . 30 60 15 . Destroy Structure 52 | . 10 . . . 34 5 3 . Lose Combat Pursuer 75 | . 30 . . . 30 15 . . Influence Decreases 3321 | 35 384 64 7 50 534 1618 629 . Entered New Map 782 | . . 44 7 . . 526 205 . Time Decay 2049 | 35 384 20 . 50 524 612 424 . Lost Part 20 | . . . . . 10 10 . . Lost Ally 20 | . . . . . . 20 . . Purge Threat 450 | . . . . . . 450 . . Squads Dispatched 18 | . 3 . . . 9 6 . . Investigation 10 | . 3 . . . 4 3 . . Extermination . | . . . . . . . . . Reinforcement 2 | . . . . . 2 . . . Assault 1 | . . . . . 1 . . . Garrison 5 | . . . . . 2 3 . . Intercept . | . . . . . . . . . Searches Triggered . | . . . . . . . . . Construction Impeded . | . . . . . . . . . Haulers Reinforced . | . . . . . . . . . Active Scanning Responses . | . . . . . . . . . Cargo Convoy Interrupts . | . . . . . . . . . Stealth | -11 -10 -10 -10 -9 -8 -8 -8 -8 --------- Run | Yrd Mat Min Exi Min Mat Sto Rec Scr Distress Signals 4 | . . . . . 3 1 . . Communications Jammed . | . . . . . . . . . Distress Signals . | . . . . . . . . . Times Spotted 121 | . 21 . . 2 58 23 2 15 Peak Tracking Total 5 | . 3 . . 2 5 4 . 4 Tactical Retreats 5 | . 2 . . . 1 1 . 1 Traps | -11 -10 -10 -10 -9 -8 -8 -8 -8 ------- Run | Yrd Mat Min Exi Min Mat Sto Rec Scr Traps Triggered 8 | . 2 . . . 1 5 . . Indirectly 4 | . . . . . . 4 . . Trap Hack Attempts . | . . . . . . . . . Triggered . | . . . . . . . . . Disarmed 4 | . . . . . 4 . . . Reprogrammed 6 | . . . . . . 6 . . Reused 4 | . . . . . . 4 . . Traps Extracted . | . . . . . . . . . Installed . | . . . . . . . . . Triggered 4 | . . . . . . 4 . . Most Traps Carried 1 | . . . . . . . . 1 Machines | -11 -10 -10 -10 -9 -8 -8 -8 -8 ---------- Run | Yrd Mat Min Exi Min Mat Sto Rec Scr Machines Disabled 10 | . 2 . . . 2 4 1 1 Max in Single Turn 1 | . 1 . . . 1 1 1 1 Machines Repaired . | . . . . . . . . . Machines Dismantled . | . . . . . . . . . Machines Sabotaged . | . . . . . . . . . Overloaded Fab Kills . | . . . . . . . . . Hacking | -11 -10 -10 -10 -9 -8 -8 -8 -8 --------- Run | Yrd Mat Min Exi Min Mat Sto Rec Scr Machines Accessed 55 | . 10 . 1 . 13 16 12 3 Terminals 32 | . 7 . . . 8 11 6 . Fabricators . | . . . . . . . . . Repair Stations 4 | . 1 . . . 1 2 . . Recycling Units 12 | . 2 . . . 2 2 6 . Scanalyzers 1 | . . . . . 1 . . . Garrison Access 2 | . . . . . 1 1 . . Total Hacks 197 | . 28 . 1 . 51 61 31 25 Successful 142 | . 18 . 1 . 31 47 20 25 Failed 52 | . 9 . . . 19 13 11 . Catastrophic 1 | . . . . . . . 1 . Database Lockouts 3 | . 1 . . . 1 1 . . Manual 123 | . 23 . . . 37 36 27 . Terminals 115 | . 21 . . . 35 38 21 . Fabricators . | . . . . . . . . . Repair Stations 21 | . 1 . . . 5 15 . . Recycling Units 26 | . 6 . . . 4 6 10 . Scanalyzers 3 | . . . . . 3 . . . Garrison Access 6 | . . . . . 4 2 . . Terminal Hacks 54 | . 3 . 1 . 5 15 5 25 Record 26 | . . . 1 . . . . 25 Robot Analysis 10 | . 1 . . . 2 3 4 . Prototype ID Bank 3 | . 2 . . . . 1 . . Open Door 4 | . . . . . . 4 . . Branch Access Points 1 | . . . . . 1 . . . Terminal Index 1 | . . . . . . . 1 . Repair Station Index 1 | . . . . . 1 . . . Alert Level 1 | . . . . . . 1 . . Unreport Threat 3 | . . . . . . 3 . . Locate Traps 2 | . . . . . . 2 . . Disarm Traps 1 | . . . . . 1 . . . Reprogram Traps 1 | . . . . . . 1 . . Fabricator Hacks . | . . . . . . . . . Repair Station Hacks 18 | . . . . . 4 14 . . Scan Component 9 | . . . . . 2 7 . . Repair 9 | . . . . . 2 7 . . Recycling Unit Hacks 2 | . 1 . . . 1 . . . Retrieve Components 2 | . 1 . . . 1 . . . Scanalyzer 2 | . . . . . 2 . . . Insert Component 1 | . . . . . 1 . . . Analyze 1 | . . . . . 1 . . . Garrison Access Hacks . | . . . . . . . . . Unauthorized Hacks 66 | . 14 . . . 19 18 15 . Terminals 42 | . 10 . . . 12 12 8 . Botnet 19 | . 5 . . . 7 4 3 . Disrupt 1 | . . . . . . 1 . . Operators 1 | . . . . . . 1 . . Skim 21 | . 5 . . . 5 6 5 . Fabricators . | . . . . . . . . . Repair Stations 1 | . 1 . . . . . . . Patch 1 | . 1 . . . . . . . Recycling Units 17 | . 3 . . . 3 4 7 . Reject 1 | . . . . . . . 1 . Recyclers 3 | . 1 . . . 1 1 . . Mask 3 | . . . . . 1 1 1 . Tunnel 10 | . 2 . . . 1 2 5 . Scanalyzers 1 | . . . . . 1 . . . Extract 1 | . . . . . 1 . . . Garrison Access 5 | . . . . . 3 2 . . Reprogram 2 | . . . . . 1 1 . . Intercept 2 | . . . . . 1 1 . . Watchers 1 | . . . . . 1 . . . Data Cores Recovered . | . . . . . . . . . Used . | . . . . . . . . . Hacking Detections 33 | . 8 . . . 10 10 5 . Full Trace Events 1 | . . . . . . 1 . . Feedback Events . | . . . . . . . . . Feedback Blocked . | . . . . . . . . . Robot Schematics Acquired . | . . . . . . . . . Robots Built . | . . . . . . . . . Authchips . | . . . . . . . . . Time . | . . . . . . . . . Total Robot Build Rating . | . . . . . . . . . Part Schematics Acquired 2 | . . . . . 2 . . . Parts Built . | . . . . . . . . . Authchips . | . . . . . . . . . Time . | . . . . . . . . . Total Part Build Rating . | . . . . . . . . . Parts Repaired 9 | . . . . . 2 7 . . Time 398 | . . . . . 58 340 . . Parts Recycled . | . . . . . . . . . Recycled Matter . | . . . . . . . . . Retrieved Matter . | . . . . . . . . . Retrieved Components 18 | . 9 . . . 9 . . . Parts Scanalyzed 1 | . . . . . 1 . . . Part Schematics Acquired 1 | . . . . . 1 . . . Parts Damaged . | . . . . . . . . . Bothacking | -11 -10 -10 -10 -9 -8 -8 -8 -8 ------------ Run | Yrd Mat Min Exi Min Mat Sto Rec Scr Used RIF Installer . | . . . . . . . . . Robots Hacked . | . . . . . . . . . Non-combat . | . . . . . . . . . Combat . | . . . . . . . . . Robot Hacks Applied . | . . . . . . . . . Relay Couplers Released . | . . . . . . . . . Fabnet Peak Effective % . | . . . . . . . . . Robots Rewired . | . . . . . . . . . Allies Hacked . | . . . . . . . . . Hacks Repelled . | . . . . . . . . . Allies | -11 -10 -10 -10 -9 -8 -8 -8 -8 -------- Run | Yrd Mat Min Exi Min Mat Sto Rec Scr Total Allies 5 | . . 1 . . 1 3 . . Largest Group 3 | . . 1 1 . 1 3 3 3 Highest-Rated Group 48 | . . 31 31 . 15 48 48 48 Highest-Rated Ally 31 | . . 31 31 . 15 16 16 16 Total Orders . | . . . . . . . . . Ally Attacks 38 | . . . . . . 14 6 18 Total Damage 415 | . . . . . . 179 64 172 Kills 6 | . . . . . . 3 1 2 Allies Corrupted . | . . . . . . . . . Allies Melted . | . . . . . . . . . Intel | -11 -10 -10 -10 -9 -8 -8 -8 -8 ------- Run | Yrd Mat Min Exi Min Mat Sto Rec Scr Active Infowar (turns) 3240 | 74 1661 52 272 151 1030 . . . Terrain 2431 | 74 1661 52 272 151 221 . . . Traps 809 | . . . . . 809 . . . Robot Analysis Total 10 | . 1 . . . 2 3 4 . Derelict Logs Recovered . | . . . . . . . . . Drone Launches . | . . . . . . . . . Drone Recoveries . | . . . . . . . . . Exploration | -11 -10 -10 -10 -9 -8 -8 -8 -8 ------------- Run | Yrd Mat Min Exi Min Mat Sto Rec Scr Turns Passed 10299 | 122 1661 52 272 151 3109 2006 1115 1811 Spaces Moved 5467 | 48 821 33 169 82 1527 860 647 1280 Core 4 | 4 . . . . . . . . Treads 4648 | 44 821 33 169 82 1527 860 647 465 Legs . | . . . . . . . . . Wheels . | . . . . . . . . . Hover 815 | . . . . . . . . 815 Flight . | . . . . . . . . . Fastest Speed 50 | 50 160 160 160 160 160 170 170 112 Average Speed 158 | 150 160 160 160 160 167 170 170 133 Slowest Speed 240 | 160 240 160 160 160 170 170 170 170 Overloaded Moves . | . . . . . . . . . Propulsion Burnouts . | . . . . . . . . . Robots Hopped . | . . . . . . . . . Potential Cave-ins . | . . . . . . . . . Cave-ins Triggered . | . . . . . . . . . Exploration Rate (%) 59 | 4 89 14 51 34 91 93 85 71 Regions Visited 8 Branch Regions 6 Pre-discovered Areas 16 | . 2 . 1 . 4 2 6 1 Known Exits Taken 6 | . 1 1 1 . 1 1 1 . Unknown Exits Taken 2 | 1 . . . 1 . . . . Scrap Searched 3 | . . . . . . . . 3 Spaces Dug . | . . . . . . . . . Terrain Destroyed 51 | . 12 . . . 35 1 . 3 Melee . | . . . . . . . . . Projectile 9 | . . . . . 5 1 . 3 AOE 42 | . 12 . . . 30 . . . Terrain Rammed . | . . . . . . . . . Walls Destroyed . | . . . . . . . . . Machines Disabled . | . . . . . . . . . Actions | -11 -10 -10 -10 -9 -8 -8 -8 -8 --------- Run | Yrd Mat Min Exi Min Mat Sto Rec Scr Total 6520 | 68 1048 32 171 88 1849 1269 655 1340 Wait 512 | . 154 . . . 68 290 . . Move 5459 | 47 820 32 168 81 1526 859 646 1280 Hop . | . . . . . . . . . Pick Up 80 | 1 4 . 3 . 41 14 1 16 Fast Attach 24 | 7 4 . . . 10 3 . . Attach 9 | . . . . . 3 2 . 4 Detach 6 | . 1 . . . 4 1 . . Swap 56 | . 2 . . . 36 14 . 4 Drop 82 | . 3 . . . 50 13 1 15 Fire 291 | 13 59 . . 7 111 73 7 21 Melee . | . . . . . . . . . Ram . | . . . . . . . . . Kick . | . . . . . . . . . Crush 1 | . 1 . . . . . . . Escape Stasis . | . . . . . . . . . Rewire . | . . . . . . . . . Trap . | . . . . . . . . . Miscellaneous . | . . . . . . . . . Route ------- -11/Scrapyard -10/Materials (discovered 4 exits: *Mat x3 / *Min) -10/Mines (discovered 4 exits: *Mat x2 / *Exi / Sub) -10/Exiles (discovered 2 exits: *Min x2) -9/Mines -8/Materials (discovered 5 exits: *Fac x3 / *Sto x2) -8/Storage (discovered 2 exits: *Fac / *Rec) -8/Recycling (discovered 2 exits: *Fac / *Scr) -8/Scraptown History --------- Turn | Location | Event 10 | -11/Scrapyard | Discovered new exit (range 15) 123 | -11/Scrapyard | Entered Materials 317 | -10/Materials | Build established: Mutant 386 | -10/Materials | Discovered new exit (range 16) 489 | -10/Materials | Discovered new exit (range 10) 677 | -10/Materials | Discovered new exit (range 15) 1131 | -10/Materials | Learned 4 Subcaves zone layouts 1177 | -10/Materials | Central database locked down 1201 | -10/Materials | Learned Storage terminal intel 1251 | -10/Materials | Discovered new exit (range 8) 1259 | -10/Materials | Learned location of 2 exits from Mines 1349 | -10/Materials | Learned 4 Subcaves zone layouts 1380 | -10/Materials | Learned Recycling recycling unit intel 1422 | -10/Materials | Learned location of 2 exits from Mines 1475 | -10/Materials | Identified exit to Materials 1475 | -10/Materials | Identified exit to Mines 1784 | -10/Materials | Entered Mines 1785 | -10/Mines | Identified exit to Subcaves 1785 | -10/Mines | Identified exit to Exiles 1787 | -10/Mines | Received a Mining Laser from a helpful Derelict 1829 | -10/Mines | Deemed a non-threat by the Exiles lab entrance 1836 | -10/Mines | Entered Exiles 1836 | -10/Exiles | Accompanied by 1 ally 1837 | -10/Exiles | Identified exit to Mines 1879 | -10/Exiles | Met 8R-AWN 1907 | -10/Exiles | Met EX-HEX 1969 | -10/Exiles | Met EX-DEC 1991 | -10/Exiles | Met EX-BIN 2022 | -10/Exiles | Learned location of Zion (-6) 2108 | -10/Exiles | Entered Mines 2237 | -9/Mines | Discovered new exit (range 13) 2259 | -9/Mines | Entered Materials 2259 | -8/Materials | Evolved 4 slots: Propulsion x1, Utility x1, Weapon x2 2398 | -8/Materials | Discovered new exit (range 5) 2617 | -8/Materials | Discovered new exit (range 13) 2995 | -8/Materials | Build established: Scavenger-Gunner 3257 | -8/Materials | Repaired Lgt. Treads 3302 | -8/Materials | Repaired Hvy. Assault Rifle 3522 | -8/Materials | Build established: Gunner 4091 | -8/Materials | Discovered new exit (range 13) 4185 | -8/Materials | Discovered new exit (range 16) 4304 | -8/Materials | Central database locked down 4323 | -8/Materials | Identified exit to Storage 4372 | -8/Materials | Learned location of 3 exits from Factory 4432 | -8/Materials | Learned location of Lower Caves (-6) 4482 | -8/Materials | Learned location of Lower Caves (-7) 4561 | -8/Materials | Discovered new exit (range 7) 4649 | -8/Materials | Learned Factory trap positions 4659 | -8/Materials | First assault squad dispatched 4700 | -8/Materials | Learned location of 2 exits from Lower Caves 4783 | -8/Materials | Garrison activated, responded to threat 5132 | -8/Materials | Garrison activated, responded to threat 5368 | -8/Materials | Entered Storage 5368 | -8/Storage | Accompanied by 1 ally 5369 | -8/Storage | Identified exit to Factory 5369 | -8/Storage | Identified exit to Recycling 5370 | -8/Storage | Loaded intel: 13 terminal locations 5581 | -8/Storage | Central database locked down 6061 | -8/Storage | Used back door to open Recycling access 6261 | -8/Storage | Repaired Gauss Rifle? 6392 | -8/Storage | Repaired Gauss Rifle? 6425 | -8/Storage | Allied Derelicts emerged from ambush trap array 6443 | -8/Storage | Learned Factory security intel 6467 | -8/Storage | Learned Factory scanalyzer intel 6481 | -8/Storage | Learned 2 Lower Caves zone layouts 6492 | -8/Storage | Learned 2 Lower Caves zone layouts 6513 | -8/Storage | Learned 4 Lower Caves zone layouts 6546 | -8/Storage | Learned Factory machine intel 6592 | -8/Storage | Repaired Gauss Rifle 6631 | -8/Storage | Repaired Hpw. Tractor Beam 6729 | -8/Storage | Build established: Hacker-Gunner 6730 | -8/Storage | Garrison activated, responded to threat 6855 | -8/Storage | Repaired Enh. Autogun 6917 | -8/Storage | Repaired Enh. Autogun 6968 | -8/Storage | Repaired Lgt. Angular Momentum Engine 7374 | -8/Storage | Entered Recycling 7374 | -8/Recycling | Accompanied by 3 allies 7375 | -8/Recycling | Identified exit to Factory 7376 | -8/Recycling | Loaded intel: 6 recycling unit locations 7673 | -8/Recycling | Learned location of 1 exit from Storage 7717 | -8/Recycling | Identified exit to Scraptown 7778 | -8/Recycling | Learned location of Extension (-4) 7793 | -8/Recycling | Learned location of 1 exit from Storage 7854 | -8/Recycling | Learned Factory stockpile data 8443 | -8/Recycling | Scanned before Scraplab entrance 8468 | -8/Recycling | Entered Scraplab 8489 | -8/Recycling | Entered Scraptown 8489 | -8/Scraptown | Accompanied by 3 allies 8800 | -8/Scraptown | Visited UFD Registry 8800 | -8/Scraptown | Registered with UFD as "Metagunner" 8848 | -8/Scraptown | Visited A0-MCA Data Center 8858 | -8/Scraptown | Given an A- rating by A0-MCA 8874 | -8/Scraptown | Found A0-MCA's Component Scanner 8924 | -8/Scraptown | Visited DA-N13 Charitable Foundation 8931 | -8/Scraptown | Found DCF Scrap (29 items) 9060 | -8/Scraptown | Visited Chapter 10 9094 | -8/Scraptown | Visited Scrap Suit Storage 9123 | -8/Scraptown | Visited Junk Repository 9213 | -8/Scraptown | Visited Derelict Rescue Squad 9224 | -8/Scraptown | Found DRS Beacon 9259 | -8/Scraptown | Visited Curators Association 9392 | -8/Scraptown | Visited Science Guys 9904 | -8/Scraptown | Visited TADAMA 9934 | -8/Scraptown | Visited Symbiants 10067 | -8/Scraptown | Met Optimus 10067 | -8/Scraptown | Accepted into 0bPrime 10124 | -8/Scraptown | Civil war broke out across Scraptown 10187 | -8/Scraptown | Lost 8 allies 10213 | -8/Scraptown | Optimus destroyed in the chaos of civil war 10300 | -8/Scraptown | Self-destructed Last Messages --------------- 10255_ Slug penetrates DR-W0Q(x). 10255_ Destroyed Trap Scanner. 10257_ Airjet destroyed. 10259_ Slug penetrates DR-W0Q(x). 10259_ Destroyed Lgt. Ion Engine. 10259_ Slug penetrates DR-W0Q(x). 10259_ DR-W0Q(x) destroyed. 10262_ Slug penetrates OG-K70(p). 10262_ OG-K70(p) destroyed. 10270_ Acquired Imp. Hover Unit. 10271_ Acquired 53 matter. 10282_ Slug penetrates Machine. 10282_ Slug penetrates S7-9Z3(h). 10284_ Bolt penetrates OS-KRM(x). 10286_ Slug penetrates S7-9Z3(h). 10287_ Bolt penetrates OS-KRM(x). 10291_ Slug penetrates Machine. 10291_ Slug penetrates K7-3JU(x). 10296_ Slug penetrates Machine. 10296_ Slug penetrates K7-3JU(x). Map ----- +----------------------------------------------------+ | ???????????????????????## ##????????????????????? | | ?##########?????????????#![#??#######????????????? | | ?#""""""""#?????????????#=%#?"""""""""???????????? | | ?#" &&&" "#?????????????#!!#""""" X """#?????????? | | ?#"!&[ "#???###########=%#""" """"#?????????? | | ?#""%= ""#???# # #" "/""#?????????? | | ?#"*[ "#???# #= #""" """"#?????????? | | ?#"" ""#???# #%*#"""" ""#?????????? | | ?#" "#???# #= #"" &#?????????? | | ?#"" ""#???# " #"" "" "&#?????????? | | ?# #???# ; #"" "" " #?????????? | | ?# #???# ; "#?????????? | | ?# #???# ; ;" #?????????? | | ?###### ###???#####%####; ;# ##########?????????? | | #######=###########!"###; ##[#########??????????? | | [=%"" ! " "%"## #??????????? | | !=!= %= % [ [ x !! ## ! #??????????? | | !*[[%!! !== %[ =%*"## ####??????????? | | !%* =/ !%[ =%= ! ## =#??????????? | | [ ! ![ j! "## ! #??????????? | | [ g [#??????????? | | """""" """" " " " " ## ####??????????? | | """""""""""""""""" """""" ## /#??????????? | | ##### ################"" = ## ![!#??????????? | | ##????????#"" %! "##########????????? | | X"#????????#""@ * #??#"""""#????????? | | "" "" ##????????#"" ! #?? !!! #????????? | | "" "" X"#??????###"" **!=#? ##"??????? | | " " ######### #""[!!!!%## X" #?????? | | "" ==[=%!=%== #?????? | | "" [/%==%=!"## #?????? | | " " ######### # %[!![%"#? !!! !#?????? | | "" "" ""#??????### &=*!=%#??#"""""#""#?????? | | "" "" ##????????# "%=[=!=#???######????????? | | X"#????????#"%=!%!["#?????????????????? | | ##????????#"=%!=!!"#?????????????????? | | ##### ################*x!!![["####??????????????? | | """""""""""""""""""""""![x!*[*"## #??#####???????? | | """""""""""""""""""""""%%[=!=[! # #???????? | | *=%!%="## "#?????? | | =*! "## "#?????? | | "## ""#?????? | | ## "#?????? | | # """ "#?????? | | """"""""" """"""""""" """""" ## " " "#?????? | | ######### ########### ###### ## """""" "#?????? | | #???#=*! * #???? ???# ## """"""? "#?????? | | "#???# *==!= #???# #??# #######???????????? | | "#???#]][!*!! #???# #??# #?????????????????? | | "#???#*%]]!*%[#???# #??# #?????????????????? | +----------------------------------------------------+ Best States ------------- Heat Dissipation 50 Energy Generation 18 Energy Capacity 310 Matter Stores 300 Matter Capacity 300 Sight Range 16 Terrain Scan Range 16 Terrain Scan Density 10 Evasion (%) 40 Targeting Accuracy 8 Recoil Reduction 3 Offensive Hacking 10 Defensive Hacking 10 Item Schematics ----------------- Recoil Stabilizer | -8/Materials | Scanalyzed Deuterium Engine | -8/Materials | Extracted Robot Schematics ------------------ None Fabricated ------------ Nothing Repaired ---------- Lgt. Treads | 73% | -8/Materials Hvy. Assault Rifle | 73% | -8/Materials Gauss Rifle | 35% | -8/Storage Gauss Rifle | 37% | -8/Storage Gauss Rifle | 66% | -8/Storage Hpw. Tractor Beam | 43% | -8/Storage Enh. Autogun | 90% | -8/Storage Enh. Autogun | 92% | -8/Storage Lgt. Angular Momentum Engine | 75% | -8/Storage Alien Tech Used ----------------- None Achievements -------------- None Challenges ------------ None Game ------ Seed MultinovaScanSuperbattery Manual? 0 Play Time 00:50:25 Cumulative 542.1 hours Start 2025.08.17 @ 16:49:03 End 2025.08.17 @ 17:59:55 Sessions 3 Manual Loads 0 Difficulty Rogue Special Mode None Game No. 286 Rogue 286 Adventurer 0 Explorer 0 Win Type - Total 6 Types 3/0/1/1/0/0/0/0/0/1 Lore% 86 Gallery% 77 Achievement% 68 Wizard Run 0 Options --------- Layout 2 ASCII 0 Keyboard 1 Movement Vi Keybinds 0 Fullscreen 1 Font 16/Tamsyn Map View 55x47 Zoom Use 0% Tactical HUD 1 Map Filters NONE Filters NONE Steam 0 RUN: d2561505-d050-458b-9c36-ae5a9ac74b46